bitfinex/quotes_SOLUSD_20250204
["timestamp","ask_amount","ask_price","bid_price","bid_amount"]
[1738628067502,7.14198222,216.92,216.79,20.0]
[1738628068103,7.14198222,216.92,216.8,13.41184853]
[1738628068315,7.14198222,216.92,216.81,4.6123]
[1738628068498,22.42346683,216.95,216.81,4.6123]
[1738628068806,27.03286683,216.95,216.81,4.6123]
[1738628068996,27.03286683,216.95,216.82,1.518]
[1738628069609,27.03286683,216.95,216.83,4.6119]
[1738628069911,27.09546683,216.97,216.86,20.0]
[1738628070293,22.42346683,216.95,216.83,10.8782]
[1738628070499,22.42346683,216.93,216.83,10.8782]
[1738628070694,0.063,216.97,216.84,13.41184853]
[1738628071411,22.48646683,216.97,216.83,10.8782]
[1738628071583,42.48646683,216.97,216.83,10.8782]
[1738628071788,20.0,216.96,216.83,22.4079]
[1738628071992,22.42346683,216.95,216.83,10.8782]
[1738628072190,20.0,216.96,216.84,13.41184853]
[1738628072389,0.063,216.97,216.84,13.41184853]
[1738628073012,0.063,216.97,216.86,13.41184853]
[1738628073308,0.063,216.97,216.89,20.0]
[1738628073809,0.063,216.97,216.9,13.41184853]
[1738628074011,0.063,216.97,216.93,20.0]
[1738628074309,0.0001,216.97,216.96,33.41184853]
[1738628074517,0.063,217.02,216.97,13.41184853]
[1738628074711,0.063,217.02,217.0,20.0]
[1738628074927,0.063,217.02,217.01,13.41184853]
[1738628075088,22.48646683,217.19,217.05,6.6223]
[1738628075289,0.063,217.19,217.05,20.03414853]
[1738628075499,0.063,217.19,217.05,21.59674853]
[1738628076116,0.063,217.19,217.06,13.41184853]
[1738628076416,4.6673,217.19,217.06,13.41184853]
[1738628076608,20.0,217.18,217.06,13.41184853]
[1738628076805,4.6673,217.19,217.06,13.41184853]
[1738628077109,27.09076683,217.19,217.06,18.01884853]
[1738628077694,22.42346683,217.09,217.0,6.5757]
[1738628078905,27.02986683,217.09,217.0,6.5757]
[1738628079823,22.42346683,217.05,216.99,1.5201]
[1738628079992,4.6064,217.09,216.99,6.1285]
[1738628080890,22.42346683,217.09,216.99,6.1285]
[1738628081318,27.02956683,217.11,216.99,6.1285]
[1738628082321,27.02956683,217.11,216.99,26.1285]
[1738628085602,22.42346683,217.09,216.99,1.5201]
[1738628085798,22.42346683,217.09,216.99,6.1285]
[1738628086437,22.42346683,217.07,216.99,6.1285]
[1738628086803,4.6067,217.08,216.99,6.1285]
[1738628087203,22.42346683,217.05,216.94,6.5565]
[1738628087402,22.42346683,217.01,216.94,6.5565]
[1738628088531,22.42346683,217.03,216.94,6.5565]
[1738628088706,27.03126683,217.03,216.94,11.166]
[1738628089413,17.19184853,217.09,216.94,11.166]
[1738628089414,22.42346683,217.07,216.94,24.57784853]
[1738628089730,3.78,217.09,216.94,24.57784853]
[1738628089731,3.78,217.09,216.95,13.41184853]
[1738628089914,20.0,217.07,216.95,13.41184853]
[1738628090517,3.78,217.09,216.95,13.41184853]
[1738628090828,4.6065,217.09,216.98,20.0]
[1738628091832,4.6061,217.1,216.99,4.6085]
[1738628092035,22.42346683,217.09,216.99,4.6085]
[1738628093229,4.6065,217.08,216.98,20.0]
[1738628093535,22.42346683,217.07,216.95,4.6093]
[1738628094831,4.607,217.06,216.95,4.6093]
[1738628095315,22.42346683,217.05,216.95,4.6093]
[1738628096439,4.6074,217.04,216.95,4.6093]
[1738628097033,22.42346683,217.05,216.95,4.6093]
[1738628097236,22.42346683,217.07,216.95,4.6093]
[1738628098317,4.607,217.06,216.95,4.6093]
[1738628099525,22.42346683,217.03,216.94,6.5565]
[1738628099723,22.42346683,217.05,216.94,11.166]
[1738628099928,22.42346683,217.05,216.95,0.03]
[1738628100346,49.5,217.04,216.95,0.03]
[1738628100543,22.42346683,216.96,216.95,0.03]
[1738628101437,35.83531536,216.96,216.95,0.03]
[1738628101815,35.83531536,216.96,216.84,0.03]
[1738628101816,20.0,216.92,216.84,0.03]
[1738628102020,22.42346683,216.88,216.84,0.03]
[1738628102645,22.42346683,216.86,216.84,0.03]
[1738628103027,13.41184853,216.85,216.84,0.03]
[1738628103843,18.02324853,216.85,216.84,0.03]
[1738628104036,20.0,216.82,216.79,0.03]
[1738628104247,22.42346683,216.8,216.79,0.03]
[1738628104625,42.42346683,216.82,216.79,0.03]
[1738628104840,71.92346683,216.84,216.79,0.03]
[1738628105021,20.0,216.81,216.79,0.03]
[1738628105426,22.42346683,216.8,216.79,0.03]
[1738628106146,40.44781536,216.8,216.79,0.03]
[1738628107432,13.41184853,216.79,216.73,0.03]
[1738628107743,35.83531536,216.78,216.73,0.03]
[1738628107947,22.42346683,216.78,216.73,0.03]
[1738628108447,42.42346683,216.78,216.73,0.03]
[1738628108648,55.83531536,216.78,216.73,0.03]
[1738628108850,35.83531536,216.78,216.73,0.03]
[1738628109428,40.44821536,216.78,216.73,0.03]
[1738628109631,20.0,216.75,216.73,0.03]
[1738628109943,35.83531536,216.74,216.73,0.03]
[1738628110655,20.0,216.71,216.66,0.063]
[1738628110841,22.42346683,216.69,216.66,0.063]
[1738628111560,4.6151,216.68,216.66,0.063]
[1738628111929,20.0,216.67,216.66,0.063]
[1738628112330,4.6151,216.68,216.66,0.063]
[1738628112545,3.78,216.77,216.66,0.063]
[1738628112750,4.6123,216.82,216.68,13.41184853]
[1738628113660,22.42346683,216.83,216.77,0.03]
[1738628114158,27.03536683,216.83,216.77,0.03]
[1738628114757,20.0,216.8,216.77,0.03]
[1738628115053,4.6119,216.83,216.77,0.03]
[1738628115254,22.42346683,216.87,216.77,0.03]
[1738628115557,30.81376683,216.91,216.77,0.03]
[1738628115936,1.16373232,216.97,216.77,0.03]
[1738628115937,27.03326683,216.93,216.78,14.41184853]
[1738628116142,2.33483659,216.97,216.78,14.41184853]
[1738628116143,22.42346683,216.97,216.82,13.41184853]
[1738628116347,3.78,216.98,216.86,19.42394853]
[1738628116660,3.78,216.98,216.87,1.5874]
[1738628117450,3.78,216.98,216.88,4.6108]
[1738628117648,3.78,216.98,216.87,1.5874]
[1738628117964,22.42346683,216.95,216.87,1.5874]
[1738628118571,8.3888,216.98,216.87,6.1983]
[1738628118746,3.78,216.98,216.87,6.1983]
[1738628119260,54.7,217.03,216.88,13.41184853]
[1738628119261,22.42346683,217.01,216.88,13.41184853]
[1738628119460,4.608,217.02,216.89,4.6106]
[1738628119967,22.42346683,217.01,216.89,4.6106]
[1738628120182,22.42346683,216.99,216.87,1.5874]
[1738628120342,22.42346683,216.97,216.87,1.5874]
[1738628120546,22.42346683,216.95,216.87,1.5874]
[1738628121362,22.42346683,216.91,216.81,1.6168]
[1738628121551,22.42346683,216.89,216.81,1.6168]
[1738628121755,4.6099,216.92,216.8,6.3101]
[1738628121756,22.42346683,216.87,216.8,6.3101]
[1738628121950,22.42346683,216.89,216.8,6.3101]
[1738628122155,22.42346683,216.89,216.8,10.9225]
[1738628122369,22.42346683,216.98,216.83,20.0]
[1738628122670,20.0,216.95,216.83,20.0]
[1738628123084,20.0,216.95,216.84,13.41184853]
[1738628123384,8.3883,217.0,216.87,4.611]
[1738628123593,22.42346683,216.98,216.85,1.5142]
[1738628123776,22.42346683,216.96,216.85,1.5142]
[1738628123951,22.42346683,216.94,216.85,1.5142]
[1738628124146,22.42346683,216.92,216.85,1.5142]
[1738628124365,20.0,216.89,216.8,10.9225]
[1738628125588,20.0,216.9,216.8,10.9525]
[1738628126252,4.6098,216.93,216.8,10.9525]
[1738628126571,22.42346683,216.95,216.81,13.41184853]
[1738628126776,27.03286683,216.95,216.81,13.41184853]
[1738628126967,20.0,216.92,216.8,10.9525]
[1738628127379,24.6105,216.9,216.8,10.9525]
[1738628128889,20.0,216.88,216.8,6.3401]
[1738628129761,20.0,216.86,216.8,6.3401]
[1738628129957,20.0,216.84,216.8,6.3401]
[1738628130195,20.0,216.82,216.8,0.03]
[1738628130394,23.55297844,216.82,216.8,0.03]
[1738628130581,13.41184853,216.81,216.8,0.03]
[1738628130784,18.02414853,216.81,216.8,0.03]
[1738628131669,4.612,216.83,216.8,0.03]
[1738628131863,33.95076683,216.88,216.8,0.03]
[1738628132084,8.3911,216.87,216.8,0.03]
[1738628132275,3.78,216.87,216.81,6.5163]
[1738628132686,4.6104,216.9,216.81,6.5163]
[1738628132984,27.03356683,216.92,216.81,11.1285]
[1738628133463,20.0,216.89,216.81,11.1285]
[1738628133873,20.0,216.89,216.81,6.5163]
[1738628134185,27.03356683,216.92,216.81,6.5163]
[1738628134363,20.0,216.89,216.81,6.5163]
[1738628134765,27.03356683,216.92,216.81,6.5163]
[1738628134766,40.44491536,216.94,216.81,11.1285]
[1738628134992,18.02144853,216.94,216.81,11.1285]
[1738628135396,22.48646683,216.96,216.83,1.0]
[1738628135397,0.063,216.96,216.83,1.0]
[1738628136167,4.6721,216.96,216.82,13.41184853]
[1738628136600,13.41184853,216.95,216.81,11.1285]
[1738628136768,22.42346683,216.94,216.81,11.1285]
[1738628136970,22.42346683,216.92,216.81,11.1285]
[1738628137501,22.42346683,216.9,216.81,6.5163]
[1738628138773,22.42346683,216.9,216.8,1.6093]
[1738628138774,22.42346683,216.85,216.8,0.03]
[1738628138976,4.6121,216.82,216.8,0.03]
[1738628139193,20.0,216.81,216.8,0.03]
[1738628140806,22.42346683,216.85,216.8,0.03]
[1738628140981,3.78,216.88,216.8,0.03]
[1738628141185,8.3909,216.88,216.8,0.03]
[1738628141868,13.41184853,216.87,216.8,0.03]
[1738628142203,13.41184853,216.85,216.8,0.03]
[1738628142910,13.41184853,216.83,216.8,0.03]
[1738628143266,22.42346683,216.82,216.8,0.03]
[1738628144270,13.41184853,216.81,216.8,0.03]
[1738628144875,18.02414853,216.81,216.8,0.03]
[1738628147475,13.41184853,216.81,216.8,0.03]
[1738628147677,22.42346683,216.84,216.8,0.03]
[1738628147915,22.42346683,216.88,216.8,0.03]
[1738628148573,13.41184853,216.87,216.8,0.03]
[1738628148913,18.02284853,216.87,216.8,0.03]
[1738628150176,13.41184853,216.85,216.8,0.03]
[1738628150491,0.063,216.81,216.8,0.03]
[1738628153290,0.063,216.81,216.8,1.6133]
[1738628153484,0.063,216.81,216.8,7.9838]
[1738628154303,22.42346683,216.94,216.81,13.41184853]
[1738628154493,0.063,216.96,216.84,20.0]
[1738628154679,0.063,216.96,216.85,17.1401]
[1738628155600,0.063,216.96,216.85,16.1401]
[1738628156902,22.48646683,216.96,216.85,4.6114]
[1738628157106,22.42346683,216.92,216.83,4.6117]
[1738628157981,22.42346683,216.9,216.83,4.6117]
[1738628158377,22.42346683,216.88,216.8,7.9838]
[1738628158602,22.42346683,216.88,216.8,12.5963]
[1738628159883,22.42346683,216.9,216.8,12.5963]
[1738628160391,13.41184853,216.89,216.8,12.5963]
[1738628161004,22.42346683,216.92,216.8,12.5963]
[1738628161184,0.063,216.96,216.83,20.0]
[1738628161380,0.063,216.96,216.83,101.8]
[1738628162018,0.063,216.96,216.84,4.6116]
[1738628162182,0.063,216.9,216.86,13.41184853]
[1738628162586,0.063,216.96,216.94,20.0]
[1738628163110,0.063,216.98,216.97,20.0]
[1738628163320,0.063,216.98,216.91,89.3708]
[1738628163489,0.063,216.98,216.95,3.40401026]
[1738628163992,0.063,216.98,216.96,4.6091]
[1738628165615,0.063,216.98,216.94,4.6094]
[1738628166115,0.063,216.98,216.91,7.5708]
[1738628166116,22.48646683,216.98,216.91,7.5708]
[1738628166300,22.48646683,216.98,216.86,10.8417]
[1738628166501,22.42346683,216.96,216.86,10.8417]
[1738628166701,0.063,216.98,216.9,20.0]
[1738628166904,0.063,216.98,216.91,13.41184853]
[1738628167398,0.063,216.98,216.94,20.0]
[1738628167623,0.063,216.98,216.95,13.41184853]
[1738628168112,0.0001,216.98,216.97,33.41184853]
[1738628168322,0.0001,216.98,216.97,43.33524853]
[1738628169005,0.063,217.03,217.01,13.41184853]
[1738628169202,0.0001,217.03,217.01,13.41184853]
[1738628169423,0.063,217.11,217.05,20.0]
[1738628169715,0.0001,217.11,217.09,20.0]
[1738628169908,0.063,217.12,217.09,20.0]
[1738628169909,0.0001,217.12,217.1,14.41184853]
[1738628170109,0.0001,217.12,217.11,18.01774853]
[1738628170309,0.0001,217.12,217.11,4.6059]
[1738628171607,0.0001,217.12,217.09,28.148]
[1738628171608,0.0001,217.12,217.09,32.7543]
[1738628171802,0.0001,217.12,217.09,4.6063]
[1738628172123,0.0001,217.12,217.1,20.0]
[1738628174116,0.0001,217.12,217.11,24.6059]
[1738628174319,0.0001,217.12,217.11,38.01774853]
[1738628174539,0.0001,217.12,217.11,24.6059]
[1738628174720,0.0001,217.12,217.11,4.6059]
[1738628177513,0.0001,217.12,217.11,18.01774853]
[1738628177848,0.0001,217.12,217.11,19.01774853]
[1738628178050,0.0001,217.12,217.11,18.01774853]
[1738628178220,0.063,217.18,217.15,20.0]
[1738628178529,0.063,217.19,217.16,4.6048]
[1738628178698,0.03,217.2,217.18,20.0]
[1738628178902,0.03,217.2,217.19,20.0]
[1738628179720,0.03,217.23,217.19,20.0]
[1738628180031,0.03,217.23,217.2,20.0]
[1738628180412,0.03,217.23,217.21,4.6038]
[1738628181535,0.03,217.23,217.17,4.6046]
[1738628181749,36.41633001,217.22,217.13,4.6055]
[1738628181923,36.41633001,217.2,217.09,4.6063]
[1738628182246,36.41633001,217.18,217.09,4.6063]
[1738628182621,49.82817854,217.2,217.09,4.6063]
[1738628182825,40.19633001,217.22,217.09,16.1222]
[1738628183023,6.3154,217.23,217.1,13.41184853]
[1738628183226,0.03,217.23,217.13,20.0]
[1738628183612,0.03,217.23,217.14,4.6053]
[1738628183812,36.41633001,217.22,217.14,4.6053]
[1738628184017,36.41633001,217.2,217.07,4.6068]
[1738628184236,36.41633001,217.2,217.09,20.0]
[1738628184621,36.41633001,217.18,217.07,16.1238]
[1738628185033,13.41184853,217.19,217.07,16.1238]
[1738628185336,13.41184853,217.17,217.07,4.6068]
[1738628185833,18.01654853,217.17,217.07,4.6068]
[1738628186218,13.41184853,217.17,217.07,4.6068]
[1738628186411,36.41633001,217.18,217.07,4.6068]
[1738628186612,42.62013001,217.2,217.07,4.6068]
[1738628186820,36.41633001,217.18,217.09,0.03]
[1738628187737,6.2668,217.2,217.09,0.03]
[1738628187738,36.41633001,217.12,217.09,0.03]
[1738628187943,49.82817854,217.1,217.09,0.03]
[1738628188719,35.80207411,217.1,217.09,0.03]
[1738628189436,22.39022558,217.12,217.09,0.03]
[1738628189832,35.80207411,217.1,217.09,0.03]
[1738628191441,85.30207411,217.1,217.09,0.03]
[1738628191641,22.39022558,217.02,216.91,4.6102]
[1738628192232,13.41184853,217.02,216.91,4.6102]
[1738628192428,6.4745,217.05,216.91,16.1357]
[1738628192649,1.579,217.09,216.92,13.41184853]
[1738628192845,1.6576,217.15,216.99,20.0]
[1738628193142,6.0279,217.16,217.0,1.5445]
[1738628193641,3.78,217.19,217.04,20.0]
[1738628193842,3.78,217.19,217.05,16.1252]
[1738628194923,0.063,217.2,217.09,20.0]
[1738628195343,13.47484853,217.2,217.09,20.0]
[1738628195741,13.47484853,217.2,217.08,20.0]
[1738628195945,13.47484853,217.2,217.09,20.0]
[1738628196440,0.063,217.2,217.1,20.0]
[1738628196620,0.063,217.2,217.1,20.69082303]
[1738628196822,0.063,217.2,217.14,20.0]
[1738628197047,0.063,217.2,217.15,1.69062641]
[1738628197225,0.03,217.23,217.19,20.0]
[1738628197830,0.03,217.23,217.2,4.604]
[1738628198025,0.03,217.23,217.21,20.0]
[1738628198228,0.0001,217.23,217.22,14.10224328]
[1738628198555,0.0001,217.23,217.22,20.24854328]
[1738628199051,0.0001,217.23,217.22,21.24854328]
[1738628199248,0.0001,217.23,217.22,22.88064328]
[1738628199553,0.0001,217.28,217.22,105.68064328]
[1738628199726,0.0001,217.28,217.26,13.41184853]
[1738628199931,0.0001,217.28,217.27,18.01434853]
[1738628203139,0.063,217.34,217.29,20.0]
[1738628203140,0.0001,217.3,217.29,20.0]
[1738628203337,0.0001,217.3,217.22,7.7784]
[1738628203547,0.0001,217.3,217.24,4.6029]
[1738628203933,0.0001,217.3,217.25,13.41184853]
[1738628204259,0.0001,217.3,217.28,20.0]
[1738628204859,0.0001,217.3,217.29,15.10194106]
[1738628205354,0.0001,217.3,217.29,14.10194106]
[1738628205551,0.0001,217.3,217.27,13.41184853]
[1738628205730,0.0001,217.3,217.24,16.1112]
[1738628206054,0.0001,217.3,217.28,20.0]
[1738628206461,0.0001,217.3,217.25,13.41184853]
[1738628207169,0.0001,217.3,217.24,16.1112]
[1738628207537,0.0001,217.3,217.24,4.6032]
[1738628207743,0.0001,217.3,217.2,11.5101]
[1738628208139,0.0001,217.3,217.23,20.0]
[1738628209145,0.0001,217.3,217.21,13.41184853]
[1738628209332,0.0001,217.3,217.23,20.0]
[1738628209534,0.0001,217.3,217.2,11.5101]
[1738628209535,0.0001,217.3,217.18,4.6044]
[1738628209764,36.31631462,217.29,217.16,11.5119]
[1738628209955,40.91861462,217.29,217.16,11.5119]
[1738628210464,36.31631462,217.29,217.16,11.5119]
[1738628210641,0.0001,217.3,217.17,13.41184853]
[1738628210841,36.31631462,217.27,217.14,4.6053]
[1738628211044,36.31631462,217.25,217.14,4.6053]
[1738628211450,36.31631462,217.25,217.17,0.03]
[1738628211640,36.31631462,217.27,217.17,0.03]
[1738628211841,36.31631462,217.25,217.17,0.03]
[1738628212049,42.67521462,217.23,217.17,0.03]
[1738628212248,36.31631462,217.19,217.17,0.03]
[1738628213038,13.41184853,217.18,217.17,0.03]
[1738628213960,18.01624853,217.18,217.17,0.03]
[1738628214148,20.0,217.11,217.01,4.608]
[1738628214362,20.0,217.11,216.95,6.0739]
[1738628214363,36.31631462,217.09,216.95,6.0739]
[1738628214555,36.31631462,217.09,216.97,4.6089]
[1738628215078,3.76,217.1,216.98,20.0]
[1738628215448,3.76,217.1,216.98,13.41184853]
[1738628215665,36.31631462,217.14,216.98,13.41184853]
[1738628215882,36.31631462,217.12,216.97,4.6089]
[1738628216043,36.31631462,217.12,216.99,24.6085]
[1738628216240,40.92211462,217.12,216.99,24.6085]
[1738628216547,36.31631462,217.1,216.99,24.6085]
[1738628217156,13.41184853,217.09,216.99,4.6085]
[1738628217355,36.31631462,217.06,216.92,4.6099]
[1738628217545,36.31631462,217.06,216.95,20.0]
[1738628217745,36.31631462,217.06,216.92,4.6099]
[1738628217952,36.31631462,217.06,216.94,20.0]
[1738628218256,36.31631462,217.06,216.92,16.1348]
[1738628219152,18.01904853,217.05,216.92,24.6099]
[1738628219466,18.01904853,217.05,216.91,0.03]
[1738628219467,36.31631462,217.0,216.91,0.03]
[1738628219767,13.41184853,216.97,216.91,0.03]
[1738628219966,36.31631462,217.0,216.91,0.03]
[1738628220178,36.31631462,217.02,216.91,4.64]
[1738628220374,49.72816315,216.98,216.91,0.03]
[1738628220874,36.31631462,216.98,216.91,0.03]
[1738628221045,7.5691,217.04,216.91,4.6401]
[1738628221046,6.5691,217.04,216.91,4.6401]
[1738628221245,40.92391462,217.03,216.91,0.03]
[1738628221452,20.0,217.0,216.91,0.03]
[1738628221666,6.5691,217.04,216.91,0.03]
[1738628222053,3.76,217.05,216.91,0.03]
[1738628222054,3.76,217.05,216.94,13.41184853]
[1738628222770,6.1843,217.09,216.97,20.0]
[1738628222981,1.5987,217.13,216.98,13.41184853]
[1738628223169,6.2497,217.14,217.02,16.1274]
[1738628223663,11.6084,217.19,217.03,13.41184853]
[1738628224048,48.76901462,217.19,217.02,16.1274]
[1738628224374,13.41184853,217.16,217.02,16.1274]
[1738628224569,36.31631462,217.15,217.02,4.6078]
[1738628224948,13.41184853,217.14,217.02,4.6078]
[1738628225144,36.31631462,217.12,217.01,20.0]
[1738628225556,54.33346315,217.14,217.01,20.0]
[1738628225962,1.0,217.18,217.01,20.0]
[1738628225963,36.31631462,217.16,217.01,13.41184853]
[1738628226162,40.07631462,217.23,217.05,13.41184853]
[1738628226449,36.31631462,217.23,217.08,20.0]
[1738628226874,40.91971462,217.23,217.08,20.0]
[1738628227067,36.31631462,217.13,217.0,4.6082]
[1738628227373,4.6061,217.1,217.0,4.6082]
[1738628227769,36.31631462,217.11,217.0,4.6082]
[1738628228077,36.31631462,217.09,216.98,4.6086]
[1738628228577,36.31631462,217.07,216.96,4.6089]
[1738628229274,40.92311462,217.07,216.96,4.6089]
[1738628229652,54.33456315,217.09,216.96,4.6089]
[1738628230074,13.41184853,217.05,216.94,6.1994]
[1738628230278,36.31631462,217.05,216.94,4.6094]
[1738628230873,13.41184853,217.04,216.94,4.6094]
[1738628231456,18.01934853,217.04,216.94,4.6094]
[1738628231852,18.01934853,217.04,216.92,1.6719]
[1738628231853,13.41184853,217.0,216.92,0.03]
[1738628232054,13.41184853,217.0,216.92,4.6398]
[1738628232766,13.41184853,216.98,216.92,0.03]
[1738628233179,18.02054853,216.98,216.92,0.03]
[1738628233387,13.41184853,216.98,216.92,0.03]
[1738628233672,18.02054853,216.98,216.92,0.03]
[1738628233875,20.0,216.95,216.92,0.03]
[1738628234077,13.41184853,216.94,216.92,0.03]
[1738628234769,3.76,216.98,216.92,0.03]
[1738628234972,36.31631462,216.97,216.92,0.03]
[1738628235159,36.31631462,216.95,216.92,0.03]
[1738628235364,49.72816315,216.93,216.92,0.03]
[1738628236973,13.41184853,216.93,216.92,0.03]
[1738628238483,85.81631462,216.97,216.92,0.03]
[1738628238677,49.5,216.97,216.92,0.03]
[1738628239055,13.41184853,216.93,216.92,0.03]
[1738628239785,54.33786315,216.93,216.92,0.03]
[1738628239986,13.41184853,216.93,216.92,0.03]
[1738628240296,20.0,216.93,216.92,0.03]
[1738628240497,69.72816315,216.93,216.92,0.03]
[1738628242203,13.41184853,216.88,216.87,0.03]
[1738628243286,14.41184853,216.88,216.87,0.03]
[1738628243486,2.0,216.84,216.8,0.03]
[1738628243725,50.72816315,216.81,216.8,0.03]
[1738628244023,89.57631462,216.83,216.77,0.03]
[1738628244192,57.8719,216.83,216.77,0.03]
[1738628244385,49.5,216.83,216.77,0.03]
[1738628244599,54.1119,216.83,216.77,0.03]
[1738628245209,13.41184853,216.82,216.77,0.03]
[1738628245414,20.0,216.79,216.77,0.03]
[1738628245600,33.41184853,216.78,216.77,0.03]
[1738628246086,38.02474853,216.78,216.77,0.03]
[1738628247081,20.0,216.78,216.77,0.03]
[1738628247385,22.44693643,216.84,216.77,0.03]
[1738628247585,20.0,216.81,216.77,0.03]
[1738628247999,35.85878496,216.8,216.77,0.03]
[1738628248204,13.41184853,216.78,216.77,0.03]
[1738628248808,33.41184853,216.78,216.77,0.03]
[1738628250529,33.41184853,216.78,216.69,0.03]
[1738628250530,20.0,216.73,216.69,0.03]
[1738628250691,35.85878496,216.71,216.69,0.03]
[1738628251020,22.44693643,216.73,216.69,0.03]
[1738628251223,42.44693643,216.73,216.69,0.03]
[1738628252233,22.44693643,216.71,216.69,0.03]
[1738628252529,4.6142,216.72,216.69,0.03]
[1738628252727,20.0,216.72,216.69,0.03]
[1738628253292,35.85878496,216.71,216.69,0.03]
[1738628254721,89.97318496,216.71,216.7,0.0001]
[1738628254930,63.91184853,216.7,216.69,0.0001]
[1738628255094,21.0,216.67,216.66,0.0001]
[1738628255299,105.35878496,216.67,216.66,0.0001]
[1738628255593,106.35878496,216.67,216.66,0.0001]
[1738628255815,105.35878496,216.67,216.66,0.0001]
[1738628256014,106.35878496,216.67,216.66,0.0001]
[1738628256193,105.35878496,216.67,216.66,0.0001]
[1738628256706,82.91184853,216.67,216.66,0.0001]
[1738628256897,87.52714853,216.67,216.66,0.0001]
[1738628257093,126.04203303,216.67,216.66,0.0001]
[1738628259206,76.54203303,216.67,216.66,0.0001]
[1738628260013,20.0,216.59,216.58,0.063]
[1738628260321,69.92673303,216.59,216.58,0.063]
[1738628260997,61.1318845,216.59,216.58,0.063]
[1738628261400,74.54373303,216.59,216.58,0.063]
[1738628262509,24.617,216.59,216.58,0.063]
[1738628264406,4.6167,216.61,216.58,0.063]
[1738628264719,1.847764,216.64,216.58,0.063]
[1738628265105,1.847764,216.64,216.59,1.524]
[1738628265312,92.1363845,216.75,216.59,1.524]
[1738628265512,36.5148845,216.75,216.59,1.524]
[1738628265947,20.0,216.72,216.59,1.524]
[1738628266445,4.6144,216.72,216.6,4.6168]
[1738628266807,38.0658845,216.81,216.63,20.0]
[1738628267012,36.5148845,216.83,216.64,20.0]
[1738628267247,24.613,216.78,216.64,20.0]
[1738628268034,20.0,216.78,216.64,20.0]
[1738628268204,13.41184853,216.8,216.66,4.6155]
[1738628268405,4.613,216.78,216.65,7.8211]
[1738628268709,36.5148845,216.74,216.65,7.8211]
[1738628268906,13.47484853,216.73,216.65,7.8211]
[1738628269111,36.5148845,216.72,216.59,27.8211]
[1738628269345,36.5148845,216.7,216.59,7.8211]
[1738628269507,36.5148845,216.7,216.59,12.4381]
[1738628269714,13.41184853,216.71,216.59,12.4381]
[1738628269935,13.41184853,216.71,216.64,0.03]
[1738628270133,0.063,216.73,216.64,0.03]
[1738628270337,13.47484853,216.73,216.64,0.03]
[1738628271442,13.41184853,216.71,216.64,0.03]
[1738628272340,18.02634853,216.71,216.64,0.03]
[1738628272929,36.5148845,216.68,216.64,0.03]
[1738628273134,20.0,216.65,216.64,0.03]
[1738628273336,33.41184853,216.65,216.64,0.03]
[1738628274464,38.02754853,216.65,216.64,0.03]
[1738628275432,13.41184853,216.6,216.58,0.063]
[1738628275637,49.92673303,216.6,216.58,0.063]
[1738628275934,13.41184853,216.61,216.58,0.063]
[1738628276331,33.41184853,216.59,216.58,0.063]
[1738628277939,41.1316845,216.6,216.58,0.063]
[1738628278144,4.6165,216.62,216.58,0.063]
[1738628278522,6.2513,216.65,216.58,0.063]
[1738628278728,4.6146,216.7,216.58,0.063]
[1738628279227,20.0,216.68,216.58,0.063]
[1738628279953,4.6146,216.7,216.58,0.063]
[1738628280953,36.5148845,216.67,216.58,0.063]